fUST/lending_fUST_20241121
["ID","MTS","AMOUNT","RATE_DAILY","PERIOD"]
[342822561,1732153842632,-151.0,0.00022145,7]
[342822562,1732153842641,-207.839831,0.00022185,7]
[342822563,1732153842654,-151.0,0.00022185,7]
[342822564,1732153842663,-151.0,0.00022185,7]
[342822565,1732153842672,-151.0,0.00022185,7]
[342822566,1732153842681,-151.0,0.00022185,7]
[342822567,1732153842692,-153.357184,0.00022187,7]
[342822568,1732153842702,-192.30488,0.00022187,7]
[342822569,1732153842711,-192.30488,0.00022187,7]
[342822570,1732153842720,-192.30488,0.00022187,7]
[342822571,1732153842730,-192.30488,0.00022187,7]
[342822572,1732153842740,-151.0,0.00022187,7]
[342822573,1732153842751,-151.0,0.00022187,7]
[342822574,1732153842761,-151.0,0.00022187,7]
[342822575,1732153842770,-243.317333,0.00022187,7]
[342822576,1732153842779,-151.0,0.00022189,7]
[342822577,1732153842788,-151.0,0.00022189,7]
[342822578,1732153842797,-170.530232,0.00022189,7]
[342822580,1732153842807,-192.30488,0.0002219,7]
[342822581,1732153842815,-192.30488,0.0002219,7]
[342822582,1732153842824,-151.0,0.0002219,7]
[342822583,1732153842833,-151.0,0.00022191,7]
[342822584,1732153842842,-500.0,0.00022191,2]
[342822585,1732153842852,-500.0,0.00022191,2]
[342822586,1732153842862,-500.29952594,0.00022191,2]
[342822587,1732153842872,-192.30488,0.00022191,7]
[342822588,1732153842881,-192.30488,0.00022191,7]
[342822589,1732153842890,-151.0,0.00022191,7]
[342822590,1732153842899,-505.63651712,0.00022191,2]
[342822591,1732153842909,-151.0,0.00022191,7]
[342822592,1732153842918,-156.831237,0.00022191,7]
[342822593,1732153842927,-4186.59,0.00022191,2]
[342822594,1732153842936,-500.0,0.00022191,2]
[342822595,1732153842945,-517.96243242,0.00022191,2]
[342822596,1732153842954,-790.66,0.00022191,2]
[342822597,1732153842963,-2706.81,0.00022191,2]
[342822598,1732153842972,-507.09211824,0.00022191,2]
[342822599,1732153842981,-500.0,0.00022191,2]
[342822601,1732153842990,-151.0,0.00022191,7]
[342822602,1732153843000,-151.0,0.00022191,7]
[342822603,1732153843009,-581.3248403,0.00022191,2]
[342822604,1732153843019,-343.33025118,0.00022191,2]
[342822605,1732153843034,-174.09480172,0.00022191,2]
[342822606,1732153843043,-500.0,0.00022191,2]
[342822607,1732153843052,-539.74385687,0.00022191,2]
[342822608,1732153843061,-500.0,0.00022191,2]
[342822609,1732153843070,-153.0,0.00022329,2]
[342822610,1732153843079,-19.59918559,0.00022329,2]
[342822648,1732153977273,307.8217951,0.00013973,2]
[342822652,1732154559068,997.58,0.00016,2]
[342822653,1732154668795,308.766095,0.00013973,2]
[342822718,1732155035792,-300.0,0.00021257,2]
[342822720,1732155035802,-2326.01334089,0.00021258,2]
[342822722,1732155035814,-1556.85308618,0.00021258,2]
[342822751,1732155038788,-289.3228752,0.00021258,2]
[342822922,1732155040536,-1487.499995,0.00021258,2]
[342822924,1732155040744,-15839.35270543,0.00021258,2]
[342822926,1732155040754,-204.0937259,0.0002148,2]
[342822928,1732155040763,-255.63763033,0.00021917,2]
[342822930,1732155040772,-500.0,0.00021917,2]
[342822932,1732155040781,-503.53950224,0.00021917,2]
[342822934,1732155040790,-504.93956568,0.00021917,2]
[342822936,1732155040799,-500.0,0.00021917,2]
[342822938,1732155040809,-500.0,0.00021917,2]
[342822940,1732155040818,-637.82401434,0.00021917,2]
[342822942,1732155040828,-501.55812973,0.00021917,2]
[342822944,1732155040837,-501.30296987,0.00021917,2]
[342822946,1732155040847,-509.18201769,0.00021917,2]
[342822948,1732155040856,-3885.79,0.00021917,2]
[342822951,1732155040866,-500.0,0.00021917,2]
[342822953,1732155040876,-531.99571614,0.00021917,2]
[342822955,1732155040885,-205.88363163,0.00021917,2]
[342822957,1732155040893,-500.0,0.00021917,2]
[342822958,1732155040903,-521.90436913,0.00021917,2]
[342822961,1732155040912,-500.0,0.00021917,2]
[342822962,1732155040924,-508.14380684,0.00021917,2]
[342822965,1732155040933,-500.0,0.00021917,2]
[342822967,1732155040943,-500.0,0.00021917,2]
[342822969,1732155040953,-500.0,0.00021917,2]
[342822971,1732155040962,-509.80451423,0.00021917,2]
[342822972,1732155040971,-577.30817626,0.00021917,2]
[342822975,1732155040980,-2481.25,0.00021917,2]
[342822977,1732155040990,-1213.07,0.00021917,2]
[342822978,1732155041003,-509.5449362,0.00021917,2]
[342822980,1732155041013,-514.34645518,0.00021917,2]
[342822982,1732155041022,-500.0,0.00021917,2]
[342822984,1732155041033,-500.0,0.00021917,2]
[342822986,1732155041043,-555.64532971,0.00021917,2]
[342822988,1732155041052,-500.0,0.00021917,2]
[342822990,1732155041062,-503.75579172,0.00021917,2]
[342822993,1732155041071,-500.0,0.00021917,2]
[342822994,1732155041082,-502.29891906,0.00021917,2]
[342822997,1732155041092,-535.5418242,0.00021917,2]
[342822998,1732155041101,-511.7956347,0.00021917,2]
[342823001,1732155041110,-523.83989908,0.00021917,2]
[342823002,1732155041120,-500.0,0.00021917,2]
[342823004,1732155041129,-525.74544115,0.00021917,2]
[342823006,1732155041139,-500.0,0.00021917,2]
[342823009,1732155041148,-291.78078596,0.00021917,2]
[342823011,1732155041158,-500.0,0.00021917,2]
[342823012,1732155041167,-163.0,0.00022,2]
[342823014,1732155041181,-602.60291503,0.00022076,2]
[342823016,1732155041191,-623.03,0.0002219,2]
[342823019,1732155041207,-629.84774217,0.00022191,2]
[342823020,1732155041216,-500.0,0.00022191,2]
[342823022,1732155041225,-500.0,0.00022191,2]
[342823024,1732155041234,-3885.79,0.00022191,2]
[342823026,1732155041243,-244.60709577,0.00022191,2]
[342823028,1732155041252,-500.0,0.00022191,2]
[342823030,1732155041262,-500.0,0.00022191,2]
[342823032,1732155041271,-2481.25,0.00022191,2]
[342823034,1732155041281,-1213.07,0.00022191,2]
[342823036,1732155041291,-500.0,0.00022191,2]
[342823039,1732155041302,-500.0,0.00022191,2]
[342823040,1732155041311,-151.0,0.00022191,7]
[342823042,1732155041320,-151.0,0.00022191,7]
[342823045,1732155041330,-151.0,0.00022191,7]
[342823047,1732155041339,-151.0,0.00022191,7]
[342823049,1732155041348,-151.0,0.00022191,7]
[342823050,1732155041358,-151.0,0.00022191,7]
[342823053,1732155041367,-151.0,0.00022191,7]
[342823054,1732155041376,-500.0,0.00022191,2]
[342823057,1732155041386,-153.0,0.000222,2]
[342823059,1732155041395,-153.0,0.000222,2]
[342823061,1732155041405,-1456.90606957,0.00022328,2]
[342823062,1732155041414,-286.4008144,0.000224,2]
[342823065,1732155041429,-623.03,0.00022464,2]
[342823067,1732155041439,-500.0,0.00022465,2]
[342823069,1732155041448,-500.0,0.00022465,2]
[342823071,1732155041457,-3885.79,0.00022465,2]
[342823073,1732155041467,-500.0,0.00022465,2]
[342823075,1732155041475,-500.0,0.00022465,2]
[342823077,1732155041485,-2481.25,0.00022465,2]
[342823079,1732155041494,-1213.07,0.00022465,2]
[342823081,1732155041504,-299.95136774,0.00022465,2]
[342823083,1732155041513,-500.0,0.00022465,2]
[342823085,1732155041522,-230.538764,0.00022465,7]
[342823087,1732155041531,-160.079581,0.00022465,7]
[342823089,1732155041540,-151.0,0.00022465,7]
[342823091,1732155041550,-640.85046946,0.00022465,2]
[342823093,1732155041559,-623.03,0.00022738,2]
[342823095,1732155041568,-152.03278412,0.00022739,2]
[342823097,1732155041577,-500.0,0.00022739,2]
[342823099,1732155041587,-3885.79,0.00022739,2]
[342823101,1732155041597,-151.0,0.00022739,7]
[342823103,1732155041606,-409.78564513,0.00022739,2]
[342823105,1732155041615,-153.98,0.00022739,2]
[342823107,1732155041625,-151.0,0.00022739,7]
[342823109,1732155041634,-162.72468,0.00022739,7]
[342823111,1732155041643,-2481.25,0.00022739,2]
[342823113,1732155041652,-1213.07,0.00022739,2]
[342823115,1732155041661,-500.0,0.00022739,2]
[342823117,1732155041671,-453.67985391,0.00022761,2]
[342823119,1732155041684,-151.0,0.00022875,7]
[342823121,1732155041693,-646.4935468,0.00022965,2]
[342823123,1732155041702,-3000.0,0.00023,2]
[342823125,1732155041712,-8450.56528056,0.00023,2]
[342823426,1732155466639,304.207025,0.00013973,2]
[342823491,1732156232909,-173.1855268,0.00021817,2]
[342823493,1732156232919,-300.0,0.00021916,2]
[342823494,1732156232928,-88.9144732,0.00021917,2]
[342823495,1732156232940,-422.03561463,0.00021917,2]
[342823496,1732156232952,-529.30517081,0.00021917,2]
[342823497,1732156232961,-505.83714745,0.00021917,2]
[342823499,1732156232970,-238.54143011,0.00021917,2]
[342823501,1732156232979,-530.27513083,0.00021917,2]
[342823502,1732156232988,-565.49879178,0.00021917,2]
[342823503,1732156232998,-590.86481865,0.00021917,2]
[342823504,1732156233007,-500.0,0.00021917,2]
[342823505,1732156233016,-500.0,0.00021917,2]
[342823506,1732156233025,-432.92133302,0.00021917,2]
[342823507,1732156233034,-500.0,0.00021917,2]
[342823508,1732156233043,-500.0,0.00021917,2]
[342823509,1732156233052,-500.0,0.00021917,2]
[342823510,1732156233061,-534.35014482,0.00021917,2]
[342823511,1732156233071,-146.3697759,0.00021917,2]
[342823512,1732156233114,-365.28193302,0.00021917,2]
[342823513,1732156233123,-530.3030855,0.00021917,2]
[342823514,1732156233133,-504.8902361,0.00021917,2]
[342823515,1732156233142,-500.0,0.00021917,2]
[342823516,1732156233151,-3238.16,0.00021917,2]
[342823517,1732156233160,-545.15,0.00021917,2]
[342823518,1732156233170,-500.0,0.00021917,2]
[342823519,1732156233179,-534.12150135,0.0002219,2]
[342823520,1732156233189,-2067.7,0.0002219,2]
[342823521,1732156233200,-1010.9,0.0002219,2]
[342823522,1732156233210,-500.0,0.00022191,2]
[342823523,1732156233219,-502.48588981,0.00022191,2]
[342823524,1732156233229,-500.0,0.00022191,2]
[342823525,1732156233237,-500.0,0.00022191,2]
[342823526,1732156233247,-3238.16,0.00022191,2]
[342823527,1732156233256,-545.15,0.00022191,2]
[342823528,1732156233266,-500.0,0.00022191,2]
[342823529,1732156233275,-2067.7,0.00022464,2]
[342823530,1732156233284,-1010.9,0.00022464,2]
[342823531,1732156233296,-213.55821634,0.00022465,2]
[342823532,1732156233305,-500.0,0.00022465,2]
[342823533,1732156233315,-500.0,0.00022465,2]
[342823534,1732156233325,-3238.16,0.00022465,2]
[342823535,1732156233338,-545.15,0.00022465,2]
[342823536,1732156233347,-505.34872498,0.00022465,2]
[342823537,1732156233357,-2067.7,0.00022738,2]
[342823538,1732156233367,-1010.9,0.00022738,2]
[342823539,1732156233376,-200.42309379,0.00022739,2]
[342823540,1732156233386,-340.11929011,0.00022739,2]
[342823541,1732156233395,-407.30092069,0.00022739,2]
[342823542,1732156233407,-3238.16,0.00022739,2]
[342823543,1732156233417,-545.15,0.00022739,2]
[342823544,1732156233426,-44950.7248384,0.00022874,2]
[342823545,1732156233436,-1002.16218632,0.0002288,2]
[342823546,1732156233448,-517.19483744,0.00022911,2]
[342823547,1732156233459,-1165.52485565,0.00022999,2]
[342823548,1732156233469,-58654.18019305,0.00023,2]
[342823564,1732156238866,-4225.99998505,0.00023,2]
[342823565,1732156238877,-102866.07899934,0.00023,2]
[342823566,1732156238887,-500.0,0.00023,2]
[342823567,1732156238896,-505.94419279,0.00023,2]
[342823568,1732156238905,-500.0,0.00023,2]
[342823569,1732156238915,-205.67968663,0.00023,2]
[342823570,1732156238923,-475.72,0.00023002,3]
[342823571,1732156238933,-3000.0,0.0002301,2]
[342823572,1732156238943,-222.9279065,0.0002301,2]
[342823573,1732156238955,-500.0,0.0002301,2]
[342823574,1732156238963,-500.0,0.0002301,2]
[342823575,1732156238973,-500.0,0.0002301,2]
[342823576,1732156238982,-500.0,0.0002301,2]
[342823577,1732156238991,-273.16831892,0.0002301,2]
[342823578,1732156239000,-603.77193247,0.0002301,2]
[342823579,1732156239009,-634.6115497,0.0002301,2]
[342823580,1732156239019,-2067.7,0.00023012,2]
[342823581,1732156239028,-1010.9,0.00023012,2]
[342823582,1732156239037,-3238.16,0.00023013,2]
[342823583,1732156239046,-545.15,0.00023013,2]
[342823584,1732156239055,-152.759871,0.00023013,7]
[342823585,1732156239064,-455.81483469,0.0002302,2]
[342823586,1732156239074,-3000.0,0.0002302,2]
[342823588,1732156239083,-154.656197,0.0002302,7]
[342823590,1732156239093,-151.691151,0.0002302,7]
[342823592,1732156239102,-3000.0,0.0002303,2]
[342823593,1732156239111,-3000.0,0.0002304,2]
[342823594,1732156239120,-151.0,0.0002304,7]
[342823595,1732156239129,-168.629623,0.0002304,7]
[342823597,1732156239138,-151.0,0.0002304,7]
[342823598,1732156239148,-151.0,0.0002304,7]
[342823599,1732156239158,-214.809052,0.0002304,7]
[342823600,1732156239167,-3000.0,0.0002305,2]
[342823601,1732156239177,-154.773637,0.0002305,7]
[342823602,1732156239186,-154.409816,0.0002305,7]
[342823603,1732156239195,-3000.0,0.0002306,2]
[342823604,1732156239207,-3000.0,0.0002307,2]
[342823605,1732156239216,-151.081521,0.0002307,7]
[342823606,1732156239225,-3000.0,0.0002308,2]
[342823607,1732156239235,-3000.0,0.0002309,2]
[342823608,1732156239244,-151.0,0.0002309,7]
[342823609,1732156239253,-151.431724,0.0002309,7]
[342823610,1732156239263,-269.086446,0.0002309,7]
[342823611,1732156239272,-3000.0,0.000231,2]
[342823612,1732156239281,-1158.80451966,0.0002311,2]
[342823696,1732156246997,-932.41988452,0.00022999,2]
[342823697,1732156247007,-500.0,0.0002301,2]
[342823698,1732156247016,-151.0,0.00023013,7]
[342823699,1732156247026,-200.42309379,0.0002309,2]
[342823700,1732156247035,-104.47702169,0.0002311,2]
[342823701,1732156450077,288.996673,0.00013973,2]
[342823708,1732157210904,165.226375,0.00013973,2]
[342823778,1732157432006,-320.55101969,0.00018,2]
[342823780,1732157432016,-300.0,0.00020042,2]
[342823782,1732157432025,-300.0,0.00020042,2]
[342823784,1732157432034,-8464.7872445,0.00020042,2]
[342823786,1732157432045,-3188.02216818,0.00020042,2]
[342823788,1732157432056,-13681.19058732,0.00020042,2]
[342823790,1732157432065,-321.39212204,0.00020043,2]
[342823792,1732157432074,-4869.52356527,0.00020043,2]
[342823808,1732157438061,-9740.55101969,0.00020043,2]
[342823813,1732157438252,-10289.92541504,0.00020043,2]
[342823814,1732157438262,-1981.9378374,0.00020142,2]
[342823815,1732157438271,-250.0,0.00020235,2]
[342823816,1732157438281,-346.102657,0.00020487,2]
[342823817,1732157438291,-1724.8633161,0.00020675,2]
[342823818,1732157438300,-1130.03844819,0.00020691,2]
[342823819,1732157438309,-401.604719,0.00020791,2]
[342823820,1732157438318,-167.844102,0.00020883,2]
[342823821,1732157438328,-346.102657,0.00021172,2]
[342823822,1732157438337,-152.0,0.00021331,2]
[342823823,1732157438346,-420.0,0.00021823,2]
[342823824,1732157438355,-346.102657,0.00021857,2]
[342823825,1732157438364,-1130.03844815,0.00021868,2]
[342823826,1732157438374,-1088.66404214,0.00021906,2]
[342823827,1732157438383,-205.88363163,0.00021917,2]
[342823828,1732157438393,-508.14380684,0.00021917,2]
[342823829,1732157438402,-577.30817626,0.00021917,2]
[342823830,1732157438413,-503.75579172,0.00021917,2]
[342823831,1732157438422,-555.64532971,0.00021917,2]
[342823832,1732157438431,-500.0,0.00021917,2]
[342823833,1732157438441,-503.07146606,0.00021917,2]
[342823834,1732157438451,-502.29891906,0.00021917,2]
[342823835,1732157438461,-500.0,0.00021917,2]
[342823836,1732157438470,-500.29952594,0.00021917,2]
[342823837,1732157438479,-505.63651712,0.00021917,2]
[342823838,1732157438489,-524.8764009,0.00021917,2]
[342823839,1732157438500,-517.96243242,0.00021917,2]
[342823840,1732157438509,-505.01071181,0.00021917,2]
[342823841,1732157438518,-369.55628664,0.00021917,2]
[342823842,1732157438528,-2249.41,0.00021917,2]
[342823843,1732157438537,-584.50371112,0.00021917,2]
[342823844,1732157438546,-521.1233065,0.00021917,2]
[342823845,1732157438555,-244.60709577,0.00021917,2]
[342823846,1732157438565,-400.01564743,0.00021917,2]
[342823847,1732157438574,-500.0,0.00021917,2]
[342823848,1732157438583,-581.3248403,0.00021917,2]
[342823849,1732157438593,-1077.54,0.00021917,2]
[342823850,1732157438602,-500.0,0.00021917,2]
[342823851,1732157438612,-500.0,0.00021917,2]
[342823852,1732157438621,-500.0,0.00021917,2]
[342823853,1732157438630,-500.0,0.00021917,2]
[342823854,1732157438641,-500.0,0.00021917,2]
[342823855,1732157438650,-500.0,0.00021917,2]
[342823856,1732157438659,-507.00445566,0.00021917,2]
[342823857,1732157438670,-4399.3061019,0.00022,3]
[342823858,1732157438682,-617.0,0.00022,2]
[342823859,1732157438691,-161.0,0.00022,2]
[342823860,1732157438702,-523.83989908,0.00022189,2]
[342823861,1732157438712,-291.78078596,0.00022189,2]
[342823862,1732157438722,-500.0,0.00022189,2]
[342823863,1732157438731,-500.0,0.0002219,2]
[342823864,1732157438740,-201.40610426,0.0002219,2]
[342823865,1732157438750,-500.0,0.0002219,2]
[342823866,1732157438759,-511.65838499,0.0002219,2]
[342823867,1732157438769,-208.24526896,0.0002219,2]
[342823868,1732157438778,-500.0,0.0002219,2]
[342823869,1732157438787,-521.90436913,0.0002219,2]
[342823870,1732157438796,-500.0,0.0002219,2]
[342823871,1732157438806,-500.0,0.0002219,2]
[342823872,1732157438815,-452.11294236,0.0002219,2]
[342823873,1732157438824,-509.5449362,0.0002219,2]
[342823874,1732157438833,-514.34645518,0.0002219,2]
[342823875,1732157438842,-511.7956347,0.0002219,2]
[342823876,1732157438851,-525.74544115,0.0002219,2]
[342823877,1732157438860,-535.5418242,0.0002219,2]
[342823878,1732157438870,-509.45,0.0002219,2]
[342823879,1732157438879,-159.44012582,0.0002219,2]
[342823880,1732157438888,-500.0,0.0002219,2]
[342823881,1732157438897,-500.0,0.0002219,2]
[342823882,1732157438907,-509.41945883,0.0002219,2]
[342823883,1732157438916,-500.0,0.0002219,2]
[342823884,1732157438925,-500.0,0.0002219,2]
[342823885,1732157438935,-500.0,0.0002219,2]
[342823886,1732157438944,-500.0,0.0002219,2]
[342823887,1732157438956,-500.0,0.0002219,2]
[342823888,1732157438965,-500.0,0.0002219,2]
[342823889,1732157438975,-500.0,0.0002219,2]
[342823890,1732157438984,-317.4433606,0.0002219,2]
[342823891,1732157438994,-185.39612151,0.0002219,2]
[342823892,1732157439004,-500.0,0.0002219,2]
[342823893,1732157439013,-173.60746743,0.0002219,2]
[342823894,1732157439022,-424.71535553,0.0002219,2]
[342823895,1732157439031,-490.63409739,0.0002219,2]
[342823896,1732157439040,-500.0,0.0002219,2]
[342823897,1732157439049,-500.0,0.0002219,2]
[342823898,1732157439058,-500.0,0.0002219,2]
[342823899,1732157439067,-510.78017601,0.0002219,2]
[342823900,1732157439076,-467.37961897,0.00022191,2]
[342823901,1732157439085,-2249.41,0.00022191,2]
[342823902,1732157439094,-1077.54,0.00022191,2]
[342823903,1732157439104,-343.33025118,0.00022191,2]
[342823904,1732157439113,-500.0,0.00022191,2]
[342823905,1732157439122,-500.0,0.00022191,2]
[342823906,1732157439131,-500.0,0.00022191,2]
[342823907,1732157439140,-617.0,0.00022192,2]
[342823908,1732157439150,-543.05457932,0.00022363,2]
[342823909,1732157439159,-688.5,0.00022453,3]
[342823910,1732157439168,-500.0,0.00022463,2]
[342823911,1732157439177,-492.09029992,0.00022464,2]
[342823912,1732157439187,-629.84774217,0.00022464,2]
[342823913,1732157439197,-500.0,0.00022464,2]
[342823914,1732157439210,-509.45,0.00022464,2]
[342823915,1732157439220,-2249.41,0.00022465,2]
[342823916,1732157439230,-1077.54,0.00022465,2]
[342823917,1732157439239,-500.0,0.00022465,2]
[342823918,1732157439248,-299.95136774,0.00022465,2]
[342823919,1732157439258,-500.0,0.00022465,2]
[342823920,1732157439268,-151.0,0.00022465,7]
[342823921,1732157439277,-151.0,0.00022465,7]
[342823922,1732157439286,-151.0,0.00022465,7]
[342823923,1732157439295,-207.839831,0.00022465,7]
[342823924,1732157439304,-453.67985391,0.00022704,2]
[342823925,1732157439314,-500.0,0.00022737,2]
[342823926,1732157439323,-500.0,0.00022738,2]
[342823927,1732157439332,-509.45,0.00022738,2]
[342823928,1732157439341,-2249.41,0.00022739,2]
[342823929,1732157439350,-1077.54,0.00022739,2]
[342823930,1732157439359,-153.98,0.00022739,2]
[342823931,1732157439368,-188.467967,0.00022739,7]
[342823932,1732157439377,-500.0,0.00022739,2]
[342823933,1732157439387,-151.0,0.00022739,7]
[342823934,1732157439396,-6239.97815012,0.00022742,2]
[342823935,1732157439406,-543.05457928,0.00022866,2]
[342823936,1732157439415,-262.0,0.00023,2]
[342823937,1732157439425,-152.03278412,0.00023012,2]
[342823938,1732157439435,-509.45,0.00023012,2]
[342823939,1732157439444,-2249.41,0.00023013,2]
[342823940,1732157439456,-1077.54,0.00023013,2]
[342823941,1732157439466,-500.0,0.00023013,2]
[342823942,1732157439475,-617.0,0.00023014,2]
[342823943,1732157439485,-161.0,0.00023014,2]
[342823944,1732157439494,-378.11398911,0.00023017,2]
[342823945,1732157439504,-322.18100962,0.00023017,2]
[342823946,1732157439513,-193.13835844,0.00023017,2]
[342823947,1732157439526,-174.32312022,0.00023017,2]
[342823948,1732157439536,-163.79585939,0.00023017,2]
[342823949,1732157439545,-151.0,0.00023018,7]
[342823950,1732157439555,-151.0,0.00023018,7]
[342823951,1732157439564,-151.0,0.00023018,7]
[342823952,1732157439574,-151.0,0.00023018,7]
[342823953,1732157439583,-151.0,0.00023018,7]
[342823954,1732157439592,-162.72468,0.00023018,7]
[342823955,1732157439601,-151.0,0.00023018,7]
[342823956,1732157439611,-99.04901789,0.00023018,7]
[342823974,1732157440068,-51.95098211,0.00023018,7]
[342823975,1732157440078,-151.0,0.00023018,7]
[342823976,1732157440087,-151.0,0.00023018,7]
[342823977,1732157440097,-35352.34220877,0.00023018,2]
[342824008,1732157442999,-501.28777618,0.00020043,2]
[342824014,1732157443198,-192.34327496,0.00020043,2]
[342824015,1732157443210,-12472.23172549,0.00023018,2]
[342824034,1732157902061,188.408791,0.00013973,2]
[342824035,1732157975460,400.0,0.00023,10]
[342824036,1732157978408,519.0,0.00025999,60]
[342824070,1732158632373,-200.4330488,0.00020106,3]
[342824072,1732158632383,-2768.4261736,0.00020169,2]
[342824074,1732158632394,-158.7587331,0.00020206,2]
[342824075,1732158632403,-2661.7092701,0.00020279,2]
[342824076,1732158632413,-174.81170766,0.00020989,2]
[342824077,1732158632424,-174.81170766,0.0002099,2]
[342824078,1732158632435,-174.81170766,0.0002099,2]
[342824079,1732158632455,-300.0,0.00021089,2]
[342824081,1732158632469,-300.0,0.00021089,2]
[342824083,1732158632484,-13681.0,0.00021089,2]
[342824085,1732158632497,-500.0,0.0002109,2]
[342824088,1732158632510,-500.0,0.0002109,2]
[342824090,1732158632522,-500.0,0.0002109,2]
[342824091,1732158632533,-212.44094177,0.0002109,2]
[342824092,1732158632544,-200.80236,0.00021183,2]
[342824093,1732158632555,-18996.4508604,0.0002121,2]
[342824094,1732158632566,-595.28987535,0.0002121,2]
[342824095,1732158632579,-21843.3861833,0.00021214,2]
[342824096,1732158632590,-509.80451423,0.00021917,2]
[342824097,1732158632601,-1780.79,0.00021917,2]
[342824098,1732158632614,-853.05,0.00021917,2]
[342824099,1732158632625,-560.42792106,0.00021917,2]
[342824100,1732158632635,-500.0,0.00021917,2]
[342824101,1732158632649,-500.0,0.00021917,2]
[342824102,1732158632659,-152.0,0.00021955,2]
[342824103,1732158632669,-386.0,0.00022,2]
[342824104,1732158632682,-161.0,0.00022,2]
[342824105,1732158632693,-507.09211824,0.0002219,2]
[342824106,1732158632704,-1780.79,0.00022191,2]
[342824107,1732158632718,-853.05,0.00022191,2]
[342824108,1732158632730,-500.0,0.00022191,2]
[342824109,1732158632741,-500.0,0.00022191,2]
[342824110,1732158632753,-386.0,0.00022192,2]
[342824111,1732158632765,-10440.90038658,0.00022216,2]
[342824112,1732158632776,-3223.71,0.00022464,2]
[342824113,1732158632787,-500.0,0.00022464,2]
[342824114,1732158632798,-1780.79,0.00022465,2]
[342824115,1732158632810,-853.05,0.00022465,2]
[342824116,1732158632821,-500.0,0.00022465,2]
[342824117,1732158632832,-640.85046946,0.00022465,2]
[342824118,1732158632843,-500.0,0.00022493,2]
[342824119,1732158632854,-612.07379543,0.00022493,2]
[342824120,1732158632864,-37.0041616,0.00022493,2]
[342824121,1732158632879,-462.9958384,0.00022493,2]
[342824122,1732158632890,-500.0,0.00022493,2]
[342824123,1732158632901,-500.0,0.00022493,2]
[342824124,1732158632911,-500.0,0.00022493,2]
[342824125,1732158632922,-500.0,0.00022493,2]
[342824126,1732158632934,-500.0,0.00022493,2]
[342824127,1732158632945,-500.0,0.00022493,2]
[342824128,1732158632956,-56.80416159,0.00022493,2]
[342824132,1732158638536,-260.03899786,0.00020169,2]
[342824133,1732158638545,-234.11611661,0.00022688,2]
[342824158,1732158643209,-500.0,0.00022492,2]
[342824159,1732158643218,-500.0,0.00022492,2]
[342824160,1732158643228,-500.0,0.00022492,2]
[342824161,1732158643237,-500.0,0.00022492,2]
[342824162,1732158643247,-500.0,0.00022492,2]
[342824163,1732158643256,-500.0,0.00022492,2]
[342824164,1732158643265,-530.11839559,0.00022492,2]
[342824165,1732158643275,-500.0,0.00022492,2]
[342824166,1732158643284,-500.0,0.00022492,2]
[342824167,1732158643293,-500.0,0.00022492,2]
[342824168,1732158643302,-500.0,0.00022492,2]
[342824169,1732158643315,-500.0,0.00022492,2]
[342824170,1732158643324,-500.0,0.00022492,2]
[342824171,1732158643333,-359.08988352,0.00022492,2]
[342824189,1732158646283,-140.91011648,0.00022492,2]
[342824191,1732158646293,-500.0,0.00022492,2]
[342824192,1732158646303,-500.0,0.00022492,2]
[342824193,1732158646312,-500.0,0.00022492,2]
[342824194,1732158646322,-340.88563125,0.00022492,2]